{"text_format":"3","workbook":"xlsx","n_sheets":1,"sheets":["Forslag"],"not_rendered":{"images":1,"defined_names":20},"read":"whole","date_system":"1900"}

{"sheet":"Forslag","index":0,"n_rows":39,"n_cols":7,"rows_kept":39,"merged":[[0,1,3,1],[0,3,0,6],[1,4,1,6],[2,4,2,6],[32,3,35,4],[36,3,36,6],[37,3,37,5],[38,3,38,5]]}
[{"$nulls":3},"KONSTRUKSJONSFORSLAG"]
[{"$nulls":3},"Firmanavn","| Skriv inn firmaets gateadresse i denne cellen."]
[{"$nulls":3},"Telefonnummer","| Skriv inn firmaets faksnummer og kontakt-e-postadresse i denne cellen."]
[{"$nulls":3},"ANTALL","BESKRIVELSE","ENHETSPRIS","BELØP"]
[null,"KUNDE",null,10,"Element 1",{"v":165,"d":"kr 165.00"},{"$f":"IFERROR(Linjeelementer[[#This Row],[ANTALL]]*Linjeelementer[[#This Row],[ENHETSPRIS]], \"\")","v":{"v":1650,"d":"kr 1,650.00"}}]
[null,"Skriv inn kundens navn i denne cellen.",null,21,"Vare 2",{"v":40,"d":"kr 40.00"},{"$f":"IFERROR(Linjeelementer[[#This Row],[ANTALL]]*Linjeelementer[[#This Row],[ENHETSPRIS]], \"\")","v":{"v":840,"d":"kr 840.00"}}]
[null,"ESTIMATNUMMER",null,5,"Vare 3",{"v":10.5,"d":"kr 10.50"},{"$f":"IFERROR(Linjeelementer[[#This Row],[ANTALL]]*Linjeelementer[[#This Row],[ENHETSPRIS]], \"\")","v":{"v":52.5,"d":"kr 52.50"}}]
[null,"C-1234",null,164,"Vare 4",{"v":2.75,"d":"kr 2.75"},{"$f":"IFERROR(Linjeelementer[[#This Row],[ANTALL]]*Linjeelementer[[#This Row],[ENHETSPRIS]], \"\")","v":{"v":451,"d":"kr 451.00"}}]
[null,"DATO",null,6,"Vare 5",{"v":12,"d":"kr 12.00"},{"$f":"IFERROR(Linjeelementer[[#This Row],[ANTALL]]*Linjeelementer[[#This Row],[ENHETSPRIS]], \"\")","v":{"v":72,"d":"kr 72.00"}}]
[null,{"$f":"TODAY()","v":"2018-11-16"},null,18,"Vare 6",{"v":5.5,"d":"kr 5.50"},{"$f":"IFERROR(Linjeelementer[[#This Row],[ANTALL]]*Linjeelementer[[#This Row],[ENHETSPRIS]], \"\")","v":{"v":99,"d":"kr 99.00"}}]
[null,"ADRESSE",null,1,"Vare 7",{"v":25,"d":"kr 25.00"},{"$f":"IFERROR(Linjeelementer[[#This Row],[ANTALL]]*Linjeelementer[[#This Row],[ENHETSPRIS]], \"\")","v":{"v":25,"d":"kr 25.00"}}]
[null,"Skriv inn kundens gateadresse i denne cellen.",{"$nulls":4},{"$f":"IFERROR(Linjeelementer[[#This Row],[ANTALL]]*Linjeelementer[[#This Row],[ENHETSPRIS]], \"\")","v":{"v":0,"d":"kr 0.00"}}]
[null,"POSTNUMMER/POSTSTED",{"$nulls":4},{"$f":"IFERROR(Linjeelementer[[#This Row],[ANTALL]]*Linjeelementer[[#This Row],[ENHETSPRIS]], \"\")","v":{"v":0,"d":"kr 0.00"}}]
[null,"Skriv inn kundens postnummer og poststed i denne cellen.",{"$nulls":4},{"$f":"IFERROR(Linjeelementer[[#This Row],[ANTALL]]*Linjeelementer[[#This Row],[ENHETSPRIS]], \"\")","v":{"v":0,"d":"kr 0.00"}}]
[null,"TELEFONNUMMER",{"$nulls":4},{"$f":"IFERROR(Linjeelementer[[#This Row],[ANTALL]]*Linjeelementer[[#This Row],[ENHETSPRIS]], \"\")","v":{"v":0,"d":"kr 0.00"}}]
[null,"Skriv inn kundens telefonnummer i denne cellen.",{"$nulls":4},{"$f":"IFERROR(Linjeelementer[[#This Row],[ANTALL]]*Linjeelementer[[#This Row],[ENHETSPRIS]], \"\")","v":{"v":0,"d":"kr 0.00"}}]
[null,"E-POST",{"$nulls":4},{"$f":"IFERROR(Linjeelementer[[#This Row],[ANTALL]]*Linjeelementer[[#This Row],[ENHETSPRIS]], \"\")","v":{"v":0,"d":"kr 0.00"}}]
[null,"Skriv inn kundens e-postadresse i denne cellen.",{"$nulls":4},{"$f":"IFERROR(Linjeelementer[[#This Row],[ANTALL]]*Linjeelementer[[#This Row],[ENHETSPRIS]], \"\")","v":{"v":0,"d":"kr 0.00"}}]
[null,"SELGER",{"$nulls":4},{"$f":"IFERROR(Linjeelementer[[#This Row],[ANTALL]]*Linjeelementer[[#This Row],[ENHETSPRIS]], \"\")","v":{"v":0,"d":"kr 0.00"}}]
[null,"Skriv inn selgers navn i denne cellen.",{"$nulls":4},{"$f":"IFERROR(Linjeelementer[[#This Row],[ANTALL]]*Linjeelementer[[#This Row],[ENHETSPRIS]], \"\")","v":{"v":0,"d":"kr 0.00"}}]
[null,"PROSJEKT",{"$nulls":4},{"$f":"IFERROR(Linjeelementer[[#This Row],[ANTALL]]*Linjeelementer[[#This Row],[ENHETSPRIS]], \"\")","v":{"v":0,"d":"kr 0.00"}}]
[null,"Skriv inn prosjektets navn i denne cellen.",{"$nulls":4},{"$f":"IFERROR(Linjeelementer[[#This Row],[ANTALL]]*Linjeelementer[[#This Row],[ENHETSPRIS]], \"\")","v":{"v":0,"d":"kr 0.00"}}]
[null,"UTARBEIDET AV:",{"$nulls":4},{"$f":"IFERROR(Linjeelementer[[#This Row],[ANTALL]]*Linjeelementer[[#This Row],[ENHETSPRIS]], \"\")","v":{"v":0,"d":"kr 0.00"}}]
[null,"Skriv inn navnet på personene som har utarbeidet forslaget i denne cellen.",{"$nulls":4},{"$f":"IFERROR(Linjeelementer[[#This Row],[ANTALL]]*Linjeelementer[[#This Row],[ENHETSPRIS]], \"\")","v":{"v":0,"d":"kr 0.00"}}]
[null,"OBS!",{"$nulls":4},{"$f":"IFERROR(Linjeelementer[[#This Row],[ANTALL]]*Linjeelementer[[#This Row],[ENHETSPRIS]], \"\")","v":{"v":0,"d":"kr 0.00"}}]
[null,"Skriv inn forslagets navn og adresse i denne cellen.",{"$nulls":4},{"$f":"IFERROR(Linjeelementer[[#This Row],[ANTALL]]*Linjeelementer[[#This Row],[ENHETSPRIS]], \"\")","v":{"v":0,"d":"kr 0.00"}}]
[null,"BETALINGSVILKÅR",{"$nulls":4},{"$f":"IFERROR(Linjeelementer[[#This Row],[ANTALL]]*Linjeelementer[[#This Row],[ENHETSPRIS]], \"\")","v":{"v":0,"d":"kr 0.00"}}]
[null,"Netto 30",{"$nulls":4},{"$f":"IFERROR(Linjeelementer[[#This Row],[ANTALL]]*Linjeelementer[[#This Row],[ENHETSPRIS]], \"\")","v":{"v":0,"d":"kr 0.00"}}]
[null,"FORFALLSDATO",{"$nulls":4},{"$f":"IFERROR(Linjeelementer[[#This Row],[ANTALL]]*Linjeelementer[[#This Row],[ENHETSPRIS]], \"\")","v":{"v":0,"d":"kr 0.00"}}]
[null,{"$f":"TODAY()+30","v":"2018-12-16"},{"$nulls":4},{"$f":"IFERROR(Linjeelementer[[#This Row],[ANTALL]]*Linjeelementer[[#This Row],[ENHETSPRIS]], \"\")","v":{"v":0,"d":"kr 0.00"}}]
[{"$nulls":5},"DELSUM",{"$f":"SUBTOTAL(109,Linjeelementer[BELØP])","v":{"v":3189.5,"d":"kr 3,189.50"}}]
[{"$nulls":3},"DETTE FORSLAGET INNEHOLDER DISSE BETINGELSENE:",null,"MVA-SATS ",{"v":0.0775,"d":"7.75%"}]
[{"$nulls":3},"Skriv inn betingelsene her.",null,"MERVERDIAVGIFT ",{"$f":"IFERROR(Delsum*MVASats, \"\")","v":{"v":247.18625,"d":"kr 247.19"}}]
[{"$nulls":5},"ANNET "]
[{"$nulls":5},"TOTALT",{"$f":"IFERROR(Delsum+G33+Annet, \"\")","v":{"v":3436.68625,"d":"kr 3,436.69"}}]
[]
[{"$nulls":3},"Signer nedenfor for å godkjenne tilbudet:"]
[]
[{"$nulls":3},"Autorisert representant",null,null,"Dato"]